bitfinex/quotes_ETHUSD_20250711
["timestamp","ask_amount","ask_price","bid_price","bid_amount"]
[1752232952658,0.001,2986.0,2985.7,0.7521]
[1752232952860,0.001,2986.0,2985.8,0.4319]
[1752232953261,0.001,2986.0,2985.9,0.4319]
[1752232954066,0.001,2986.0,2985.5,0.4319]
[1752232954578,0.001,2986.0,2985.6,0.4319]
[1752232955149,0.001,2986.0,2984.7,10.0]
[1752232955150,0.55,2985.8,2984.4,0.4319]
[1752232955366,0.55,2984.9,2983.6,0.8116]
[1752232955577,10.55,2984.7,2983.8,0.4319]
[1752232955789,0.6791,2985.3,2984.2,0.769]
[1752232955974,5.32101519,2985.2,2984.7,0.4319]
[1752232956475,0.02501519,2985.2,2984.8,0.4319]
[1752232957450,0.4695,2985.1,2984.2,0.769]
[1752232957649,0.49451519,2985.0,2984.2,0.769]
[1752232958142,0.4695,2984.9,2984.2,0.769]
[1752232958370,5.32101519,2984.8,2984.2,0.769]
[1752232958543,5.32101519,2984.8,2984.1,0.4319]
[1752232958544,6.36956671,2984.8,2984.1,0.4319]
[1752232958750,6.36956671,2984.8,2983.9,6.1249]
[1752232958751,1.1486,2984.7,2983.9,6.1249]
[1752232959179,1.17361519,2984.7,2983.9,6.1249]
[1752232959555,0.70411519,2984.7,2983.9,6.1249]
[1752232960267,6.00011519,2984.7,2983.9,0.8289]
[1752232960686,6.65803186,2984.7,2983.9,0.8289]
[1752232961068,28.12476627,2984.7,2983.5,0.4285]
[1752232961265,28.09975108,2984.7,2983.5,0.4285]
[1752232962853,28.10075108,2984.7,2983.1,13.35217955]
[1752232963057,22.80375108,2984.7,2983.3,0.4285]
[1752232963303,22.80375108,2984.7,2983.1,0.4285]
[1752232963304,10.55,2984.6,2983.1,0.4285]
[1752232963491,0.55,2984.0,2983.1,0.4285]
[1752232963657,5.32201519,2983.9,2983.1,0.4285]
[1752232964456,0.02501519,2983.9,2983.1,0.4285]
[1752232964756,10.55,2983.3,2982.7,0.005]
[1752232964981,11.04841519,2983.2,2982.7,0.005]
[1752232965182,1.33701667,2983.1,2982.7,0.005]
[1752232965491,0.02501519,2983.0,2982.7,0.005]
[1752232965672,10.594,2982.9,2982.7,0.005]
[1752232965880,0.02501519,2982.8,2982.7,0.005]
[1752232966284,10.0,2982.8,2982.7,0.005]
[1752232966480,5.297,2982.8,2982.7,0.005]
[1752232966665,5.298,2982.8,2982.7,0.005]
[1752232967072,0.02501519,2983.0,2982.7,0.005]
[1752232967273,5.299,2982.8,2982.7,0.005]
[1752232967498,5.298,2982.8,2982.7,0.005]
[1752232968069,5.308,2982.8,2982.7,0.005]
[1752232968974,0.02501519,2983.1,2982.7,0.005]
[1752232969171,5.307,2983.0,2982.7,0.005]
[1752232969418,0.6791,2982.8,2982.7,0.005]
[1752232969770,5.306,2982.8,2982.7,0.005]
[1752232970308,0.02501519,2983.1,2982.7,0.005]
[1752232970519,5.306,2983.0,2982.7,0.4335]
[1752232970813,0.02501519,2982.9,2982.7,0.4335]
[1752232970971,0.02501519,2982.9,2982.8,0.4285]
[1752232970972,5.306,2982.9,2982.8,0.4285]
[1752232971165,0.02501519,2983.1,2982.8,0.4285]
[1752232971515,5.304,2983.0,2982.9,0.4285]
[1752232971715,5.32901519,2983.1,2982.9,0.4285]
[1752232972009,5.32901519,2983.1,2982.7,4.15251679]
[1752232972010,0.02501519,2983.1,2983.0,0.4285]
[1752232973201,0.24524433,2983.2,2983.0,0.4285]
[1752232973371,5.302,2983.3,2982.7,0.7999]
[1752232973573,5.61365825,2983.8,2982.7,0.7999]
[1752232973574,0.02501519,2983.2,2982.7,1.2284]
[1752232973773,5.3,2983.3,2982.8,0.4285]
[1752232973973,0.02501519,2983.2,2982.9,0.4285]
[1752232975368,0.02501519,2983.2,2982.7,0.7999]
[1752232975601,0.5821744,2983.2,2982.7,1.2284]
[1752232976417,0.5821744,2983.2,2982.7,0.7999]
[1752232976620,0.5821744,2983.2,2982.7,0.005]
[1752232978625,1.6906744,2983.2,2982.7,0.005]
[1752232978830,0.72372513,2983.1,2982.7,0.005]
[1752232979034,0.02501519,2983.0,2982.7,0.005]
[1752232979929,6.4085,2982.9,2982.7,0.005]
[1752232980133,0.45441519,2982.8,2982.7,0.005]
[1752232980737,0.02501519,2982.8,2982.7,0.005]
[1752232980954,6.31258616,2982.8,2982.7,0.005]
[1752232981636,10.87863316,2982.8,2982.7,0.005]
[1752232981826,10.85361797,2982.8,2982.7,0.005]
[1752232983440,20.85361797,2982.8,2982.7,0.005]
[1752232983645,21.53271797,2982.8,2982.7,0.005]
[1752232984142,16.39909919,2982.8,2982.7,0.005]
[1752232984348,21.70009919,2982.8,2982.7,0.005]
[1752232985338,16.39909919,2982.8,2982.7,0.005]
[1752232985640,21.70009919,2982.8,2982.7,0.005]
[1752232986059,21.53371797,2982.8,2982.7,0.005]
[1752232986256,16.23271797,2982.8,2982.7,0.005]
[1752232986426,21.53371797,2982.8,2982.7,0.005]
[1752232986764,15.80331797,2982.8,2982.7,0.005]
[1752232986986,10.0,2982.8,2982.7,0.005]
[1752232987268,5.9801,2982.9,2982.7,0.005]
[1752232987431,5.32601519,2982.8,2982.7,0.005]
[1752232987855,5.75541519,2982.8,2982.7,0.005]
[1752232988651,6.30541519,2982.8,2982.7,0.005]
[1752232988831,7.00386671,2982.8,2982.7,0.005]
[1752232989046,6.97885152,2982.8,2982.7,0.005]
[1752232989449,16.97885152,2982.8,2982.7,0.005]
[1752232989708,10.69845152,2982.8,2982.7,0.005]
[1752232989961,15.99945152,2982.8,2982.7,0.005]
[1752232991044,0.69845152,2982.8,2982.7,0.005]
[1752232991243,5.32601519,2982.8,2982.7,0.005]
[1752232992154,0.02501519,2982.8,2982.7,0.005]
[1752232992358,0.02501519,2983.1,2982.7,0.005]
[1752232992555,5.301,2983.0,2982.7,0.005]
[1752232992861,0.02501519,2982.9,2982.7,0.005]
[1752232993063,5.301,2982.8,2982.7,0.005]
[1752232993265,0.02501519,2982.9,2982.7,0.005]
[1752232993503,4.016047,2982.8,2982.7,0.4766]
[1752232993763,4.016047,2983.2,2982.7,0.4766]
[1752232993969,5.32601519,2983.1,2982.8,0.4716]
[1752232994554,5.32601519,2983.1,2982.7,0.7697]
[1752232994779,0.02501519,2983.1,2982.7,0.7697]
[1752232994937,5.301,2983.0,2982.7,0.005]
[1752232995283,5.301,2983.0,2981.6,3.35387323]
[1752232995284,10.48733441,2982.8,2980.0,10.0]
[1752232995437,0.55,2981.6,2980.2,0.4716]
[1752232995635,5.38201519,2981.5,2980.3,0.7616]
[1752232995863,0.6791,2981.9,2980.5,0.7616]
[1752232996036,0.88710191,2981.6,2980.6,0.94043438]
[1752232996238,0.7091125,2981.6,2980.6,0.03355029]
[1752232996437,10.0,2981.4,2980.7,0.4716]
[1752232996647,0.02501519,2981.3,2980.7,0.4716]
[1752232997462,10.0,2982.4,2980.9,0.7616]
[1752232997660,3.63748462,2982.6,2981.2,0.7616]
[1752232997661,6.77163027,2982.3,2981.2,0.7616]
[1752232997873,6.06343458,2982.3,2981.3,4.62096893]
[1752232998070,0.73322558,2982.2,2981.2,0.4716]
[1752232998273,10.73322558,2982.2,2981.2,0.4716]
[1752232998490,10.6791,2982.2,2981.2,0.4716]
[1752232998676,0.57746152,2982.1,2981.2,0.4716]
[1752232998870,5.391,2982.0,2981.2,0.4716]
[1752232999212,5.39,2982.0,2981.4,0.7871]
[1752232999487,5.39,2982.0,2981.5,0.4716]
[1752232999655,5.39,2982.0,2981.6,0.4716]
[1752232999856,5.39,2982.0,2981.4,0.7871]
[1752233000157,5.39,2982.0,2981.5,0.4716]
[1752233000473,5.39,2982.0,2981.6,0.4716]
[1752233000687,5.39,2982.0,2981.4,0.7871]
[1752233000842,5.39,2982.0,2981.7,0.4716]
[1752233001045,5.39,2982.0,2981.8,0.4716]
[1752233001973,0.27716377,2982.4,2981.8,0.4716]
[1752233002138,5.384,2982.3,2981.8,0.4716]
[1752233002346,0.02501519,2982.2,2981.9,0.4716]
[1752233002958,0.02501519,2982.2,2982.0,0.4716]
[1752233003159,5.381,2982.3,2982.1,0.7801]
[1752233003360,5.381,2982.3,2982.1,1.2517]
[1752233003559,5.40301519,2982.5,2982.1,1.2517]
[1752233003748,5.40301519,2982.5,2982.1,0.7801]
[1752233003959,5.40301519,2982.5,2982.1,1.2517]
[1752233004179,5.40301519,2982.5,2982.2,0.4716]
[1752233004358,5.40301519,2982.5,2982.3,0.4716]
[1752233004777,5.40301519,2982.5,2982.1,0.7801]
[1752233006273,5.40301519,2982.5,2982.2,0.4716]
[1752233006473,5.40301519,2982.5,2982.3,0.4716]
[1752233006474,5.374,2982.5,2982.3,0.4716]
[1752233006774,0.6791,2983.2,2982.4,0.4716]
[1752233006979,0.02501519,2983.1,2982.4,0.4716]
[1752233007196,5.37,2983.0,2982.4,0.4716]
[1752233007380,5.39401519,2982.9,2982.4,0.4716]
[1752233007576,5.39401519,2982.9,2982.1,4.13339776]
[1752233007770,5.39401519,2982.9,2982.2,0.88493978]
[1752233008106,5.39401519,2982.9,2982.3,0.4216]
[1752233009302,0.02501519,2982.9,2982.3,0.4216]
[1752233009598,5.364,2983.2,2982.4,0.8036]
[1752233009799,0.02501519,2983.1,2982.4,0.8036]
[1752233010002,0.02501519,2983.1,2982.4,1.21927551]
[1752233010308,0.02501519,2983.1,2982.5,0.4716]
[1752233010606,5.362,2983.4,2982.6,0.7711]
[1752233011873,0.1676249,2984.0,2982.6,0.7711]
[1752233011874,0.6791,2984.2,2983.1,3.35212105]
[1752233012072,0.6791,2984.2,2982.7,0.4716]
[1752233012073,0.7089903,2984.5,2983.4,0.8329]
[1752233012318,0.001,2984.6,2983.6,0.8329]
[1752233012319,0.02601519,2984.6,2983.6,0.8329]
[1752233012606,0.02601519,2984.6,2983.8,3.35138899]
[1752233012802,0.02601519,2984.6,2983.9,3.35131372]
[1752233013004,0.02601519,2984.6,2984.0,3.82276904]
[1752233013175,0.02601519,2984.6,2984.0,0.4716]
[1752233013778,1.01301671,2984.6,2983.6,0.8329]
[1752233014881,1.01301671,2984.6,2983.7,0.4716]
[1752233015082,0.56441671,2984.6,2983.7,3.8230862]
[1752233015276,0.02601519,2984.6,2983.8,0.4716]
[1752233015602,0.001,2984.6,2983.8,0.4716]
[1752233016201,0.02601519,2984.6,2983.8,0.4716]
[1752233016585,0.02601519,2984.6,2983.9,0.7811]
[1752233016795,0.02601519,2984.6,2984.0,0.03351206]
[1752233017003,0.02601519,2984.6,2984.0,0.4716]
[1752233017309,0.001,2984.6,2984.0,0.4716]
[1752233018577,0.001,2984.6,2984.1,0.31098891]
[1752233018813,0.001,2984.6,2984.2,0.31098891]
[1752233018997,0.001,2984.6,2984.3,0.31098891]
[1752233019310,0.001,2984.6,2983.9,0.7811]
[1752233019311,0.001,2984.6,2984.4,0.31098891]
[1752233019505,0.001,2984.6,2984.5,0.31083919]
[1752233019817,0.55,2984.4,2983.5,0.76]
[1752233020014,10.55,2984.2,2983.5,0.76]
[1752233020201,0.02501519,2984.1,2983.5,0.76]
[1752233020591,5.358,2984.1,2983.5,0.76]
[1752233021032,0.02501519,2984.0,2983.5,0.76]
[1752233021391,0.02501519,2984.0,2983.6,0.4576]
[1752233021897,10.98521477,2984.4,2983.5,0.76]
[1752233021898,10.02501519,2984.3,2983.7,0.4576]
[1752233022095,5.38101519,2984.2,2983.7,0.4576]
[1752233024729,5.38101519,2984.2,2983.5,0.76]
[1752233025295,9.39706219,2984.2,2983.5,0.76]
[1752233025515,9.372047,2984.2,2983.6,0.49111655]
[1752233025835,0.02501519,2984.1,2983.6,0.4576]
[1752233026011,0.02501519,2984.1,2983.5,0.76]
[1752233026205,0.02501519,2984.1,2983.7,0.4576]
[1752233026728,10.53661477,2984.0,2983.5,0.76]
[1752233027025,0.02501519,2983.9,2983.2,0.4576]
[1752233027228,4.03055934,2983.8,2983.2,0.4576]
[1752233027406,4.03055934,2983.8,2982.6,0.8284]
[1752233027407,10.53661477,2983.5,2982.6,0.8284]
[1752233027605,5.36601519,2983.4,2982.6,0.8284]
[1752233027806,6.10980977,2983.4,2982.6,0.8284]
[1752233031500,6.08479458,2983.4,2982.6,0.8284]
[1752233031833,0.02501519,2983.3,2982.6,0.8284]
[1752233032338,6.08479458,2983.4,2982.6,0.8284]
[1752233032702,0.02501519,2983.3,2982.6,0.8284]
[1752233032904,0.53810152,2983.3,2982.6,0.8284]
[1752233033100,0.56311671,2983.3,2982.6,0.8284]
[1752233034129,0.53810152,2983.3,2982.6,0.8284]
[1752233034324,0.02501519,2983.2,2982.6,0.8284]
[1752233034648,5.335,2983.1,2982.6,0.8284]
[1752233034952,0.02501519,2983.0,2982.6,1.286]
[1752233035266,0.02501519,2983.0,2982.2,0.4576]
[1752233037961,4.04106219,2983.0,2982.2,0.4576]
[1752233041609,5.317,2982.5,2981.8,0.4576]
[1752233041794,0.02501519,2982.4,2982.1,0.002]
[1752233042668,5.34101519,2982.4,2982.2,0.4576]
[1752233043054,5.34101519,2982.4,2982.1,0.002]
[1752233043273,5.34101519,2982.4,2981.9,0.4576]
[1752233043594,5.34101519,2982.4,2982.0,0.4576]
[1752233043795,0.02501519,2982.4,2982.1,0.4576]
[1752233043958,0.02501519,2982.7,2982.1,0.4576]
[1752233044297,4.016047,2982.9,2982.2,0.82453229]
[1752233044451,4.016047,2982.9,2982.4,3.35294009]
[1752233044787,5.313,2983.1,2981.9,8.6664828]
[1752233044788,5.313,2983.1,2982.6,4.12697945]
[1752233045089,5.313,2983.1,2982.7,0.4576]
[1752233045387,5.34201519,2983.2,2982.8,0.4576]
[1752233045556,5.34201519,2983.2,2982.9,0.4576]
[1752233046590,5.317,2983.2,2982.9,0.4576]
[1752233047273,0.70411519,2983.1,2982.3,0.7742]
[1752233047495,0.70411519,2983.1,2982.3,1.2318]
[1752233047791,0.70411519,2983.1,2981.6,3.35386506]
[1752233047792,0.6791,2983.7,2982.7,0.7742]
[1752233047994,5.319,2983.6,2983.0,3.35226712]
[1752233048157,0.6791,2984.0,2983.1,0.4576]
[1752233048486,5.34601519,2983.9,2983.1,0.4576]
[1752233048703,5.99236671,2983.9,2983.1,0.4576]
[1752233049006,0.6791,2983.5,2982.7,0.7742]
[1752233049306,5.34501519,2983.4,2982.7,0.7742]
[1752233049490,5.34501519,2983.4,2982.7,1.2318]
[1752233049869,0.6791,2983.8,2982.8,3.38608018]
[1752233050070,5.32,2983.7,2983.1,3.35215225]
[1752233050269,5.34501519,2983.7,2983.0,3.81089015]
[1752233050696,5.34501519,2983.7,2983.1,3.35211787]
[1752233051007,5.32,2983.7,2983.3,0.8184]
[1752233051193,5.34801519,2983.9,2983.6,3.35158651]
[1752233051373,10.0,2984.2,2983.7,3.81012642]
[1752233051715,10.0,2984.2,2983.8,3.80994858]
[1752233051716,5.323,2984.2,2983.8,3.80994858]
[1752233051885,5.325,2984.2,2983.9,3.35130881]
[1752233052091,5.325,2984.2,2983.9,3.80991122]
[1752233052287,5.325,2984.2,2983.9,0.4586]
[1752233053288,5.322,2984.2,2983.9,0.4586]
[1752233053513,5.32,2984.3,2983.9,3.80991006]
[1752233053911,5.32,2984.3,2984.0,0.4586]
[1752233054306,0.02601519,2984.5,2984.1,0.4586]
[1752233054612,5.319,2984.4,2984.1,0.4586]
[1752233054978,5.319,2984.4,2983.9,0.7635]
[1752233055217,5.319,2984.4,2984.0,0.4586]
[1752233057784,5.85360152,2984.4,2983.6,0.7813]
[1752233057984,0.001,2984.5,2983.7,0.49211543]
[1752233058190,5.31,2984.4,2983.8,3.35136276]
[1752233058385,5.31,2984.4,2983.9,3.80989829]
[1752233058583,10.0,2984.3,2983.0,0.7701]
[1752233058820,1.1201,2984.2,2983.1,0.4586]
[1752233059123,0.46601519,2984.1,2983.1,0.4586]
[1752233059321,5.316,2984.0,2983.1,0.4586]
[1752233059618,0.46601519,2983.9,2983.1,0.4586]
[1752233059993,0.441,2983.9,2983.2,0.03352105]
[1752233060198,0.46601519,2983.9,2983.2,0.03352105]
[1752233060916,0.441,2983.9,2983.2,0.49497207]
[1752233061092,0.6791,2984.2,2983.2,0.49497207]
[1752233061093,5.312,2983.8,2983.3,0.4586]
[1752233061311,5.312,2983.8,2983.4,0.4586]
[1752233061707,5.311,2983.7,2983.4,0.4586]
[1752233061906,1.1201,2984.2,2983.4,0.4586]
[1752233062128,5.31,2984.1,2983.4,0.4586]
[1752233063204,5.31,2984.1,2983.5,0.7903]
[1752233063404,5.308,2984.0,2983.5,0.7903]
[1752233063820,5.308,2984.0,2983.6,0.4586]
[1752233064023,1.1211,2984.5,2983.6,0.4586]
[1752233064024,0.6801,2984.5,2983.7,0.4586]
[1752233064339,5.33201519,2984.4,2983.7,0.4586]
[1752233065904,5.137147,2984.5,2983.7,0.4586]
[1752233065905,4.017047,2984.5,2984.0,0.8149]
[1752233066101,4.017047,2984.5,2984.0,4.9546433]
[1752233066340,4.017047,2984.5,2984.1,0.4586]
[1752233066515,4.017047,2984.5,2984.2,0.4586]
[1752233067237,0.001,2984.5,2984.2,0.4586]
[1752233067736,0.001,2984.5,2984.3,0.49210869]
[1752233067967,0.001,2984.5,2984.4,3.37600343]
[1752233068112,0.001,2984.5,2984.4,4.85931468]
[1752233068332,0.001,2984.5,2984.4,5.31791468]
[1752233069151,0.001,2984.5,2984.4,15.31791468]
[1752233069330,0.001,2984.5,2984.4,16.17955336]
[1752233069508,0.001,2984.5,2984.4,5.86791468]
[1752233069704,0.001,2984.5,2984.4,15.86791468]
[1752233070611,0.001,2984.6,2984.5,4.67154499]
[1752233070957,0.001,2984.6,2984.5,7.97087713]
[1752233071111,0.001,2985.7,2985.6,3.3494105]
[1752233071304,0.001,2985.7,2985.6,0.7709]
[1752233071518,0.001,2985.7,2985.6,1.2295]
[1752233071719,0.001,2985.7,2985.6,4.6124046]
[1752233071929,0.001,2985.7,2985.6,1.72423456]
[1752233072157,0.001,2985.7,2985.6,1.2295]
[1752233072543,0.001,2985.7,2985.6,4.5789105]
[1752233073259,0.001,2985.7,2985.6,4.88973562]
[1752233075671,0.001,2985.7,2985.6,6.84532512]
[1752233075965,0.001,2985.7,2985.6,6.38672512]
[1752233076165,0.001,2985.7,2985.6,8.02539763]
[1752233076457,0.001,2985.7,2985.6,0.31082512]
[1752233076658,0.442,2985.7,2985.6,0.31082512]
[1752233076832,0.001,2985.7,2985.6,0.31082512]
[1752233077273,0.442,2985.7,2985.2,0.7824]
[1752233078861,0.442,2985.7,2985.2,1.4369]
[1752233080285,0.442,2985.7,2985.3,0.31062365]
[1752233080448,0.442,2985.7,2985.4,0.31062365]
[1752233080647,0.6791,2985.6,2985.5,0.31062365]
[1752233080844,1.1199,2985.6,2985.5,0.31062365]
[1752233084749,11.1199,2985.6,2985.5,0.31062365]
[1752233088279,11.1199,2985.6,2984.4,1.2536]
[1752233088480,0.46581519,2985.5,2984.5,0.31095027]
[1752233088809,10.53761477,2985.7,2984.4,1.2536]
[1752233088810,0.001,2985.7,2984.6,0.77605559]
[1752233089105,0.001,2985.7,2985.0,3.35005225]
[1752233089398,0.001,2985.7,2985.2,4.13849101]
[1752233089691,0.001,2985.7,2985.3,0.34444774]
[1752233089846,0.001,2985.7,2985.4,0.31095027]
[1752233090046,0.001,2985.7,2985.5,0.31095027]
[1752233090251,0.001,2985.7,2985.6,0.31095027]
[1752233090655,0.001,2985.7,2985.6,0.74255027]
[1752233090887,0.001,2985.7,2985.6,5.35005582]
[1752233091692,0.001,2985.7,2985.6,15.35005582]
[1752233091987,0.001,2985.7,2985.6,15.31656172]
[1752233092677,0.001,2985.8,2985.7,13.89929832]
[1752233092879,0.001,2985.8,2985.7,20.77214859]
[1752233093181,0.001,2985.8,2985.7,23.56017667]
[1752233093687,0.001,2986.0,2985.7,23.56017667]
[1752233093688,0.001,2986.0,2985.9,14.72737398]
[1752233093886,0.001,2986.0,2985.9,15.03832425]
[1752233094054,0.001,2986.9,2986.8,3.34806481]
[1752233094257,0.001,2986.9,2986.8,4.48731508]
[1752233094453,0.001,2986.9,2986.8,5.73594479]
[1752233095075,0.001,2986.9,2986.8,5.70246415]
[1752233095824,0.001,2986.9,2986.8,11.00346415]
[1752233096390,0.001,2986.9,2986.8,21.00346415]
[1752233097081,0.001,2986.9,2986.8,21.55346415]
[1752233097280,1e-08,2986.9,2986.8,21.55346415]
[1752233098331,1e-08,2986.9,2986.8,21.55246415]
[1752233099180,1e-08,2986.9,2986.8,15.70246415]
[1752233099376,1e-08,2986.9,2986.8,21.00254185]
[1752233099614,1e-08,2986.9,2986.8,1.61184907]
[1752233099814,1e-08,2986.9,2986.8,5.299]
[1752233100020,0.44080001,2986.9,2986.0,0.7625]
[1752233100200,0.44080001,2986.9,2986.2,5.299]
[1752233100398,0.44080001,2986.9,2986.1,3.34883461]
[1752233100399,10.53661478,2986.9,2985.9,5.299]
[1752233100653,10.46581519,2986.8,2985.6,1.17170095]
[1752233100825,0.70511519,2986.7,2985.3,3.34967666]
[1752233101126,0.4408,2986.6,2985.4,8.64863056]
[1752233101340,0.02501519,2986.5,2985.4,8.64863056]
[1752233101531,0.02501519,2986.5,2985.5,0.31112576]
[1752233101692,0.4408,2986.4,2985.6,0.31112576]
[1752233102023,0.02501519,2986.3,2985.7,0.31112576]
[1752233102224,0.4408,2986.2,2985.8,0.31112576]
[1752233102517,0.4408,2986.2,2985.9,0.31112576]
[1752233102820,0.4408,2986.2,2986.0,0.31112576]
[1752233103015,0.02501519,2986.6,2986.1,0.31112576]
[1752233103222,0.4408,2986.2,2985.3,10.4316]
[1752233103382,0.4408,2986.2,2985.4,0.31119305]
[1752233103715,0.4408,2986.2,2985.5,0.31119305]
[1752233103921,0.4408,2986.2,2985.6,0.31119305]
[1752233104126,0.4408,2986.2,2985.7,0.31119305]
[1752233104327,0.02501519,2986.6,2985.7,0.31119305]
[1752233104328,0.02501519,2986.6,2985.8,0.31119305]
[1752233104504,0.02501519,2986.6,2985.3,10.4316]
[1752233104505,0.6801,2986.0,2985.9,0.31119305]
[1752233105020,0.4408,2986.0,2985.9,0.31119305]
[1752233105531,1.1209,2986.0,2985.9,0.31119305]
[1752233107529,1.1209,2986.0,2985.1,5.299]
[1752233107741,1.1209,2986.0,2985.2,0.99499859]
[1752233108036,0.6801,2986.0,2985.3,3.34966766]
[1752233108225,0.6801,2986.0,2985.4,0.03349634]
[1752233108962,0.6801,2986.4,2985.9,0.002]
[1752233109300,0.6801,2986.8,2986.0,0.4316]
[1752233109541,0.6801,2986.8,2985.9,0.3371252]
[1752233109542,0.02501519,2986.7,2985.9,0.3371252]
[1752233109738,0.6801,2986.6,2985.9,0.002]
[1752233110041,0.46581519,2986.5,2985.9,0.002]
[1752233112044,10.6801,2986.3,2985.9,0.002]
[1752233112253,0.02501519,2986.2,2985.9,0.002]
[1752233112618,0.45351519,2986.2,2985.9,0.002]
[1752233116858,4.016047,2986.1,2985.9,0.002]
[1752233117155,0.02501519,2986.0,2985.9,0.002]
[1752233119944,5.32301519,2986.0,2985.9,0.002]
[1752233120877,9.33906219,2986.0,2985.9,0.002]
[1752233121038,9.314047,2986.0,2985.9,0.002]
[1752233125642,4.016047,2986.0,2985.9,0.002]
[1752233126066,4.016047,2986.0,2985.9,0.3404759]
[1752233126449,4.016047,2986.8,2985.9,0.7772]
[1752233126665,5.297,2986.8,2985.9,0.002]
[1752233126865,0.6801,2986.3,2985.9,0.002]
[1752233127062,5.32201519,2986.2,2985.9,0.002]
[1752233127742,5.57293064,2986.2,2985.9,0.002]
[1752233128047,0.62530306,2986.1,2985.9,0.002]
[1752233128252,0.02501519,2986.0,2985.9,0.002]
[1752233129856,0.02501519,2986.0,2985.9,0.31499761]
[1752233131881,5.32201519,2986.0,2985.9,0.31499761]
[1752233137386,26.39560667,2986.0,2984.7,0.7962]
[1752233137551,10.52359148,2985.2,2984.8,0.31333842]
[1752233137746,5.32101519,2985.1,2984.7,0.002]
[1752233138547,6.00111519,2985.1,2984.7,0.002]
[1752233138760,10.55,2985.0,2984.7,0.002]
[1752233138967,0.02501519,2984.9,2984.7,0.002]
[1752233139281,9.312047,2984.8,2984.7,0.002]
[1752233140689,0.55,2984.5,2983.4,0.7664]
[1752233140981,10.52359148,2984.1,2983.4,0.7664]
[1752233141304,5.32101519,2984.0,2983.4,0.7664]
[1752233142697,5.297,2984.2,2983.5,3.35176805]
[1752233142902,5.297,2984.3,2983.6,3.76340901]
[1752233143058,5.297,2984.3,2983.7,0.8202]
[1752233143258,0.02501519,2984.2,2983.7,0.8202]
[1752233145094,0.02501519,2984.2,2983.4,0.8042]
[1752233145258,0.6801,2984.1,2983.4,0.8042]
[1752233145459,5.32101519,2984.0,2983.4,0.8042]
[1752233146073,5.32101519,2984.0,2983.4,0.002]
[1752233146295,5.296,2984.0,2983.4,0.002]
[1752233146987,0.6801,2984.1,2983.4,0.002]
[1752233147298,0.02501519,2984.0,2983.4,0.002]
[1752233147486,5.296,2983.9,2983.4,3.35378755]
[1752233147692,5.296,2983.9,2983.4,0.002]
[1752233148092,0.02501519,2984.0,2983.5,3.35166613]
[1752233148093,5.32101519,2984.0,2983.5,3.35166613]
[1752233148285,0.02501519,2984.0,2983.5,3.35166613]
[1752233148779,0.02501519,2984.0,2983.4,3.35381669]
[1752233148968,0.02501519,2984.0,2983.5,3.3517339]
[1752233149166,0.02501519,2984.0,2983.4,3.35381669]
[1752233149167,0.02501519,2984.0,2983.4,3.35386993]
[1752233149564,0.02501519,2984.0,2983.4,0.002]
[1752233149763,0.55711671,2984.0,2983.4,0.002]
[1752233151603,0.02501519,2984.0,2983.4,3.35379102]
[1752233151774,0.02501519,2984.0,2983.4,0.002]
[1752233152108,0.02501519,2984.0,2983.4,3.35382932]
[1752233152415,0.02501519,2984.0,2983.4,0.002]
[1752233154110,0.02501519,2984.0,2983.4,3.35387549]
[1752233154804,0.02501519,2984.0,2983.4,0.002]
[1752233155697,0.02501519,2984.0,2983.4,3.35384817]
[1752233155928,0.02501519,2984.0,2983.5,0.8056]
[1752233156251,1.74406802,2984.5,2984.2,0.7762]
[1752233156386,0.6801,2985.0,2984.2,0.7762]
[1752233156591,10.52359148,2985.7,2984.5,3.35055197]
[1752233156592,0.92792529,2985.4,2984.5,3.35055197]
[1752233156814,0.92792529,2985.4,2984.6,3.35053273]
[1752233156998,5.295,2985.2,2984.6,3.35053273]
[1752233157200,5.295,2985.2,2984.5,3.35059197]
[1752233157414,0.6801,2984.6,2983.7,0.7762]
[1752233157611,0.6801,2984.6,2983.4,0.002]
[1752233157612,0.02501519,2984.5,2983.5,0.7762]
[1752233158613,0.57501519,2984.5,2983.5,0.7762]
[1752233159122,0.6801,2984.4,2983.4,0.002]
[1752233159321,10.52359148,2983.9,2983.4,0.002]
[1752233159528,5.32001519,2983.8,2983.4,0.002]
[1752233161090,1.998,2983.0,2982.6,0.8281]
[1752233161511,1.998,2983.0,2982.6,10.8281]
[1752233161722,1.998,2983.0,2982.6,0.8281]
[1752233162332,1.998,2983.0,2982.6,10.8281]
[1752233162692,1.998,2983.0,2982.6,4.18087123]
[1752233163025,1.998,2983.0,2982.7,3.77072347]
[1752233163320,1.998,2983.0,2982.7,0.41808712]
[1752233163519,1.998,2983.0,2982.6,0.8281]
[1752233164089,1.998,2983.0,2982.8,3.3525462]
[1752233164325,1.998,2983.0,2982.7,3.35262777]
[1752233164812,1.998,2983.0,2982.8,3.35254363]
[1752233165010,1.998,2983.0,2982.8,3.3524425]
[1752233165191,1.998,2983.0,2982.9,3.35244225]
[1752233165592,1.998,2983.0,2982.9,4.12874225]
[1752233165895,1.998,2983.0,2982.9,4.87687142]
[1752233166645,1.998,2983.0,2982.9,0.74812917]
[1752233166789,1.998,2983.0,2982.9,3.35244225]
[1752233167425,1.998,2983.0,2982.8,13.35252598]
[1752233168942,1.998,2983.0,2982.9,3.35244225]
[1752233169253,1.998,2983.0,2982.9,4.19996667]
[1752233169544,1.998,2983.0,2982.9,6.48471593]
[1752233170544,1.998,2983.0,2982.9,16.45119151]
[1752233173904,0.02501519,2983.9,2983.1,3.35221057]